fUST/lending_fUST_20260119
["ID","MTS","AMOUNT","RATE_DAILY","PERIOD"]
[402714130,1768827041081,-500.0,0.00012994,2]
[402714132,1768827041090,-500.0,0.00012994,2]
[402714134,1768827041100,-500.0,0.00012994,2]
[402714136,1768827041111,-500.0,0.00012994,2]
[402714138,1768827041120,-450.0,0.00012994,2]
[402714140,1768827041131,-500.0,0.00012994,2]
[402714142,1768827041141,-500.0,0.00012994,2]
[402714144,1768827041152,-500.0,0.00012994,2]
[402714146,1768827041161,-300.0,0.00012994,2]
[402714148,1768827041170,-300.0,0.00012994,2]
[402714150,1768827041180,-300.0,0.00012994,2]
[402714152,1768827041190,-500.0,0.00012998,2]
[402714154,1768827041199,-9303.14575918,0.00013,2]
[402714156,1768827041211,-500.0,0.00013,2]
[402714168,1768827041324,-2881.50761692,0.00013,2]
[402714171,1768827041336,-37315.3466239,0.00013,2]
[402714173,1768827041345,-500.0,0.00013273,2]
[402714175,1768827041355,-1000.0,0.00013699,2]
[402714177,1768827041365,-500.0,0.00013699,2]
[402714179,1768827041374,-27673.24686414,0.00013722,2]
[402714181,1768827041384,-1000.0,0.00013821,2]
[402714183,1768827041394,-23688.01303929,0.00014,2]
[402714375,1768827043648,-650.87791801,0.00014,2]
[402714390,1768827043932,-669.25071439,0.00014,2]
[402714398,1768827046696,-6061.40608304,0.00014,2]
[402714402,1768827113578,162.28,7.384e-05,2]
[402714403,1768827114487,202.85,7.692e-05,2]
[402714404,1768827114903,243.42,8e-05,2]
[402714405,1768827115321,283.99,8.307e-05,2]
[402714406,1768827115717,324.56,8.615e-05,2]
[402714407,1768827116164,365.13,8.923e-05,2]
[402714408,1768827116573,405.7,9.23e-05,2]
[402714437,1768828055162,-197.55720116,0.00012294,2]
[402714438,1768828057214,-569.35902122,0.00012294,2]
[402714439,1768828070097,-302.75978558,0.00012294,2]
[402714440,1768828071686,-190.4260646,0.00012294,2]
[402714441,1768828073686,-184.45249927,0.00012294,2]
[402714442,1768828075252,-271.21151674,0.00012294,2]
[402714443,1768828077298,-192.88672286,0.00012294,2]
[402714444,1768828085613,-607.08730474,0.00012294,2]
[402714445,1768828087858,-291.00530107,0.00012294,2]
[402714446,1768828089673,-245.37981066,0.00012294,2]
[402714447,1768828092020,-217.96019808,0.00012294,2]
[402714448,1768828100221,-404.49846402,0.00012294,2]
[402714449,1768828115084,-206.67935998,0.00012294,2]
[402714450,1768828116521,-283.90841868,0.00012294,2]
[402714451,1768828130082,-221.67868038,0.00012294,2]
[402714452,1768828131794,-304.48039736,0.00012294,2]
[402714453,1768828134327,-213.65659245,0.00012294,2]
[402714456,1768828203822,12373.22943222,0.00027,120]
[402714486,1768828231707,-5000.0,0.00012171,2]
[402714488,1768828231717,-594.0,0.00012294,2]
[402714490,1768828231727,-247.38988035,0.0001245,2]
[402714492,1768828231737,-3603.00630978,0.000129,2]
[402714494,1768828231746,-300.0,0.00012987,2]
[402714496,1768828231758,-300.0,0.00012987,2]
[402714498,1768828231767,-300.0,0.00012987,2]
[402714500,1768828231777,-1200.0,0.00012987,2]
[402714501,1768828231786,-50000.0,0.00012988,2]
[402714504,1768828231796,-417.75069507,0.00012988,2]
[402714506,1768828231805,-500.0,0.00012988,2]
[402714507,1768828231815,-500.0,0.00012988,2]
[402714510,1768828231825,-376.27699999,0.00012988,2]
[402714511,1768828231834,-500.0,0.00012988,2]
[402714514,1768828231843,-500.0,0.00012988,2]
[402714515,1768828231852,-500.0,0.00012988,2]
[402714517,1768828231862,-500.0,0.00012988,2]
[402714519,1768828231871,-500.0,0.00012988,2]
[402714522,1768828231881,-500.0,0.00012988,2]
[402714523,1768828231890,-500.0,0.00012988,2]
[402714525,1768828231899,-500.0,0.00012988,2]
[402714527,1768828231908,-500.0,0.00012988,2]
[402714529,1768828231917,-500.0,0.00012988,2]
[402714531,1768828231927,-500.0,0.00012988,2]
[402714533,1768828231936,-500.0,0.00012988,2]
[402714535,1768828231945,-500.0,0.00012988,2]
[402714537,1768828231954,-500.0,0.00012988,2]
[402714539,1768828231963,-500.0,0.00012988,2]
[402714541,1768828231971,-500.0,0.00012988,2]
[402714543,1768828231981,-500.0,0.00012988,2]
[402714545,1768828231990,-500.0,0.00012988,2]
[402714547,1768828231999,-500.0,0.00012988,2]
[402714549,1768828232008,-500.0,0.00012988,2]
[402714551,1768828232017,-500.0,0.00012988,2]
[402714553,1768828232027,-500.0,0.00012988,2]
[402714555,1768828232036,-500.0,0.00012988,2]
[402714557,1768828232045,-483.59718441,0.00012988,2]
[402714559,1768828232055,-500.0,0.00012988,2]
[402714561,1768828232064,-500.0,0.00012988,2]
[402714563,1768828232074,-303.27433896,0.00012988,2]
[402714565,1768828232083,-500.0,0.00012988,2]
[402714567,1768828232094,-447.24467474,0.00012988,2]
[402714569,1768828232104,-500.0,0.00012988,2]
[402714571,1768828232113,-500.0,0.00012988,2]
[402714573,1768828232124,-500.0,0.00012988,2]
[402714574,1768828232135,-500.0,0.00012988,2]
[402714576,1768828232145,-500.0,0.00012988,2]
[402714579,1768828232154,-500.0,0.00012988,2]
[402714580,1768828232164,-500.0,0.00012988,2]
[402714583,1768828232175,-500.0,0.00012988,2]
[402714584,1768828232184,-500.0,0.00012988,2]
[402714587,1768828232194,-500.0,0.00012988,2]
[402714588,1768828232204,-500.0,0.00012988,2]
[402714590,1768828232213,-500.0,0.00012988,2]
[402714592,1768828232224,-500.0,0.00012988,2]
[402714594,1768828232234,-500.0,0.00012988,2]
[402714596,1768828232244,-500.0,0.00012988,2]
[402714598,1768828232254,-500.0,0.00012988,2]
[402714599,1768828232263,-500.0,0.00012988,2]
[402714600,1768828232272,-500.0,0.00012988,2]
[402714601,1768828232281,-500.0,0.00012988,2]
[402714603,1768828232290,-500.0,0.00012988,2]
[402714605,1768828232299,-500.0,0.00012988,2]
[402714607,1768828232309,-500.0,0.00012988,2]
[402714609,1768828232319,-500.0,0.00012988,2]
[402714611,1768828232327,-500.0,0.00012988,2]
[402714613,1768828232336,-500.0,0.00012988,2]
[402714615,1768828232346,-500.0,0.00012988,2]
[402714617,1768828232355,-500.0,0.00012988,2]
[402714618,1768828232364,-500.0,0.00012988,2]
[402714619,1768828232373,-500.0,0.00012988,2]
[402714620,1768828232383,-500.0,0.00012988,2]
[402714621,1768828232393,-500.0,0.00012988,2]
[402714622,1768828232402,-500.0,0.00012988,2]
[402714623,1768828232412,-500.0,0.00012988,2]
[402714624,1768828232425,-500.0,0.00012988,2]
[402714625,1768828232437,-500.0,0.00012988,2]
[402714626,1768828232451,-500.0,0.00012988,2]
[402714627,1768828232464,-500.0,0.00012988,2]
[402714628,1768828232478,-500.0,0.00012988,2]
[402714629,1768828232489,-500.0,0.00012988,2]
[402714630,1768828232500,-500.0,0.00012988,2]
[402714631,1768828232512,-500.0,0.00012988,2]
[402714632,1768828232524,-500.0,0.00012988,2]
[402714633,1768828232536,-534.70034911,0.00012988,2]
[402714634,1768828232547,-500.0,0.00012988,2]
[402714635,1768828232560,-500.0,0.00012988,2]
[402714636,1768828232572,-500.0,0.00012988,2]
[402714637,1768828232585,-500.0,0.00012988,2]
[402714638,1768828232597,-500.0,0.00012988,2]
[402714639,1768828232608,-500.0,0.00012988,2]
[402714640,1768828232621,-500.0,0.00012988,2]
[402714641,1768828232633,-500.0,0.00012988,2]
[402714642,1768828232645,-500.0,0.00012988,2]
[402714644,1768828232657,-500.0,0.00012988,2]
[402714646,1768828232667,-371.91607497,0.00012988,2]
[402714649,1768828232679,-500.0,0.00012988,2]
[402714651,1768828232691,-500.0,0.00012988,2]
[402714653,1768828232702,-500.0,0.00012988,2]
[402714655,1768828232713,-500.0,0.00012988,2]
[402714658,1768828232725,-500.0,0.00012988,2]
[402714660,1768828232737,-500.0,0.00012988,2]
[402714662,1768828232749,-500.0,0.00012988,2]
[402714664,1768828232760,-500.0,0.00012988,2]
[402714666,1768828232773,-500.0,0.00012988,2]
[402714669,1768828232787,-214.124,0.0001299,2]
[402714671,1768828232797,-500.0,0.00013273,2]
[402714673,1768828232807,-417.0,0.00013329,2]
[402714675,1768828232819,-178.0,0.00013329,2]
[402714677,1768828232830,-538.03272544,0.0001361,2]
[402714679,1768828232841,-500.0,0.00013698,2]
[402714682,1768828232853,-388.0993389,0.00013698,2]
[402714684,1768828232864,-500.0,0.00013699,2]
[402714686,1768828232876,-1000.0,0.00013821,2]
[402714687,1768828232887,-165.23732694,0.00013914,2]
[402714690,1768828232900,-52978.9648839,0.00014,2]
[402714692,1768828232916,-1543.16857932,0.00014,2]
[402714694,1768828232931,-988.57473205,0.00014,2]
[402714901,1768828237771,-4642.70334245,0.00014,2]
[402714966,1768828240179,-3e-08,0.00014,2]
[402714997,1768828245862,-888.0993389,0.00014,2]
[402714998,1768828246758,18252.51988911,0.00027,120]
[402715000,1768828284791,385.85014519,0.00027,120]
[402715006,1768828907720,645.96999915,0.0002,120]
[402715011,1768829021493,-300.0,0.00011507,2]
[402715012,1768829021514,-292.42548655,0.00011508,2]
[402715013,1768829021536,-281.03387938,0.00011508,2]
[402715014,1768829023074,-151.80242089,0.00011508,2]
[402715015,1768829025545,-67.16369973,0.00011508,2]
[402715016,1768829025566,-90.08046604,0.00011508,2]
[402715017,1768829027155,-545.5228273,0.00011393,2]
[402715018,1768829028692,-224.35942418,0.00011393,2]
[402715019,1768829030070,-200.99521863,0.00011393,2]
[402715020,1768829031447,-368.9676843,0.00011393,2]
[402715021,1768829033547,-286.26583423,0.00011393,2]
[402715022,1768829034994,-469.910025,0.00011393,2]
[402715023,1768829037825,-224.26,0.00011393,2]
[402715024,1768829039877,-296.91157198,0.00011393,2]
[402715026,1768829044124,-203.64178857,0.00011393,2]
[402715027,1768829045613,-208.23196804,0.00011393,2]
[402715028,1768829047137,-229.02784273,0.00011393,2]
[402715029,1768829049805,-178.51215727,0.00011393,2]
[402715030,1768829055167,-156.33034166,0.00011393,2]
[402715031,1768829058537,-208.01666853,0.00011393,2]
[402715032,1768829060540,-155.02860412,0.00011393,2]
[402715033,1768829062084,-313.95941398,0.00011393,2]
[402715121,1768829437968,-5000.0,0.00011166,2]
[402715122,1768829437978,-579.0,0.00011279,2]
[402715123,1768829437989,-247.62672275,0.0001145,2]
[402715124,1768829437999,-1200.0,0.00011504,2]
[402715125,1768829438008,-500.0,0.00011505,2]
[402715126,1768829438018,-500.0,0.00011505,2]
[402715127,1768829438028,-500.0,0.00011505,2]
[402715128,1768829438038,-272.44953395,0.00011505,2]
[402715129,1768829438048,-500.0,0.00011505,2]
[402715130,1768829438057,-500.0,0.00011505,2]
[402715131,1768829438068,-500.0,0.00011505,2]
[402715132,1768829438077,-500.0,0.00011505,2]
[402715133,1768829438087,-500.0,0.00011505,2]
[402715134,1768829438096,-500.0,0.00011505,2]
[402715135,1768829438105,-500.0,0.00011505,2]
[402715136,1768829438115,-500.0,0.00011505,2]
[402715137,1768829438125,-500.0,0.00011505,2]
[402715138,1768829438134,-500.0,0.00011505,2]
[402715139,1768829438143,-567.44006983,0.00011505,2]
[402715140,1768829438152,-400.75658392,0.00011505,2]
[402715141,1768829438162,-500.0,0.00011505,2]
[402715142,1768829438171,-500.0,0.00011505,2]
[402715143,1768829438181,-563.18908851,0.00011505,2]
[402715144,1768829438191,-500.0,0.00011505,2]
[402715145,1768829438200,-500.0,0.00011505,2]
[402715146,1768829438210,-204.69784058,0.00011505,2]
[402715147,1768829438220,-300.0,0.00011505,2]
[402715148,1768829438230,-280.0,0.00011505,2]
[402715149,1768829438239,-300.0,0.00011505,2]
[402715150,1768829438249,-300.0,0.00011505,2]
[402715151,1768829438258,-34737.35136509,0.00011506,2]
[402715152,1768829438269,-4434.36343626,0.00011506,2]
[402715153,1768829438281,-4909.09049424,0.00011506,2]
[402715156,1768829440200,-4562.45270198,0.00011506,2]
[402715159,1768829440386,-3e-08,0.00011506,2]
[402715416,1768829444446,-1356.7420024,0.00011506,2]
[402715417,1768829444456,-1856.25799759,0.00011509,2]
[402715670,1768829929950,159.0,0.000273,120]
[402715671,1768829931475,159.0,0.000273,120]
[402715676,1768829942919,159.0,0.000273,120]
[402715694,1768829969325,160.06450075,0.000273,120]
[402715859,1768830372113,-849.57549102,0.00010488,2]
[402715860,1768830416477,-288.54067472,0.00010488,2]
[402715862,1768830437399,158.49,8.429e-05,2]
[402715863,1768830437842,178.3,8.73e-05,2]
[402715864,1768830438254,169.79941491,9.031e-05,2]
[402716032,1768830631998,-5000.0,0.00010356,2]
[402716034,1768830632008,-1200.0,0.00010461,2]
[402716036,1768830632019,-567.0,0.00010462,2]
[402716038,1768830632029,-250.59871672,0.00010568,2]
[402716040,1768830632038,-1564.3631765,0.00010701,2]
[402716042,1768830632048,-1000.0,0.000115,2]
[402716044,1768830632057,-300.0,0.00011507,2]
[402716046,1768830632066,-284.11102501,0.00011508,2]
[402716176,1768830638265,-215.88897499,0.00011508,2]
[402716177,1768830638274,-260.43756537,0.00011508,2]
[402716712,1768830902823,157.74,0.00027397,120]
[402716758,1768831570531,155.0,9.798e-05,2]
[402716776,1768831661510,-197.55720116,0.00010201,2]
[402716777,1768831663687,-569.35902122,0.00010201,2]
[402716778,1768831676538,-302.75978558,0.00010201,2]
[402716779,1768831678124,-184.45249927,0.00010201,2]
[402716780,1768831679737,-271.21151674,0.00010201,2]
[402716781,1768831681893,-192.88672286,0.00010201,2]
[402716782,1768831683431,-190.4260646,0.00010201,2]
[402716783,1768831691489,-245.37981066,0.00010201,2]
[402716784,1768831693008,-217.96019808,0.00010201,2]
[402716785,1768831694463,-607.08730474,0.00010201,2]
[402716786,1768831695988,-291.00530107,0.00010201,2]
[402716793,1768831707246,-404.49846402,0.00010201,2]
[402716801,1768831723098,-206.67935998,0.00010201,2]
[402716802,1768831725185,-120.39189926,0.00010201,2]
[402716803,1768831725209,-163.51651942,0.00010253,2]
[402716814,1768831736468,-88.95690148,0.00010253,2]
[402716815,1768831736494,-215.52349588,0.00010304,2]
[402716819,1768831738965,-213.65659245,0.00010304,2]
[402716821,1768831740584,-221.67868038,0.00010304,2]
[402716858,1768831806689,233.0,0.00023293,120]
[402716872,1768831832159,-253.15102273,0.00010201,2]
[402716873,1768831832170,-524.86494536,0.00010201,2]
[402716875,1768831832181,-543.0,0.00010201,2]
[402716877,1768831832192,-874.63818407,0.00010201,2]
[402716899,1768831838354,-2804.34584784,0.00010201,2]
[402716901,1768831838364,-563.0,0.00010201,2]
[402716903,1768831838376,-300.0,0.00010336,2]
[402716905,1768831838386,-403.11581,0.00010337,2]
[402716907,1768831838397,-229.71556331,0.00010337,2]
[402716909,1768831838407,-211.19517602,0.00010337,2]
[402716911,1768831838420,-469.65466817,0.00010337,2]
[402716914,1768831838432,-92.92189722,0.00010337,2]
[402716916,1768831838442,-500.0,0.00010337,2]
[402716918,1768831838452,-500.0,0.00010337,2]
[402716920,1768831838462,-471.40117662,0.00010337,2]
[402716922,1768831838471,-3945.75627052,0.00010338,2]
[402716924,1768831838483,-6054.24372948,0.00010338,2]
[402716926,1768831838492,-1249.51154133,0.00010834,2]
[402717157,1768831840657,-296.66699695,0.00010834,2]
[402717179,1768831840852,-3e-08,0.00010834,2]
[402717507,1768831846379,-1572.69132347,0.00010834,2]
[402717534,1768832140833,230.2714608,0.00022518,120]
[402717544,1768832466355,550339.65778588,0.00027397,120]
[402717579,1768832621511,-512.64112978,9.998e-05,2]
[402717580,1768832624372,-151.80242089,9.898e-05,2]
[402717582,1768832629420,-348.19757911,9.898e-05,2]
[402717584,1768832632504,-292.42548655,9.898e-05,2]
[402717585,1768832634766,-314.43989022,9.898e-05,2]
[402717587,1768832637788,-368.9676843,9.898e-05,2]
[402717588,1768832640513,-545.5228273,9.898e-05,2]
[402717589,1768832642075,-296.91157198,9.898e-05,2]
[402717590,1768832643580,-200.99521863,9.898e-05,2]
[402717592,1768832647906,-203.64178857,9.898e-05,2]
[402717593,1768832649467,-229.02784273,9.898e-05,2]
[402717594,1768832651036,-178.51215727,9.898e-05,2]
[402717595,1768832654226,-208.23196804,9.898e-05,2]
[402717596,1768832656334,-156.33034166,9.898e-05,2]
[402717597,1768832659060,-469.910025,9.898e-05,2]
[402717598,1768832661059,-208.01666853,9.898e-05,2]
[402717599,1768832662573,-155.02860412,9.898e-05,2]
[402717600,1768832664557,-313.95941398,9.898e-05,2]
[402717601,1768832666200,-286.26583423,9.898e-05,2]
[402717602,1768832674310,-71.81267689,9.898e-05,2]
[402717603,1768832674332,-152.44732311,9.998e-05,2]
[402717604,1768832696909,-395.96121924,9.898e-05,2]
[402717605,1768832700926,-179.17516074,9.898e-05,2]
[402717606,1768832702507,-272.3701998,9.898e-05,2]
[402717607,1768832704505,-452.9042016,9.898e-05,2]
[402717642,1768832865454,9338.42058509,9.7e-05,2]
[402717643,1768832865477,10000.01,9.7e-05,2]
[402717644,1768832865511,10000.01,9.7e-05,2]
[402717645,1768832865536,10000.01,9.7e-05,2]
[402717646,1768832865560,10000.01,9.7e-05,2]
[402717647,1768832865584,10000.01,9.7e-05,2]
[402717648,1768832865607,10000.01,9.7e-05,2]
[402717649,1768832865630,10000.01,9.7e-05,2]
[402717650,1768832865653,10000.01,9.7e-05,2]
[402717651,1768832865675,10000.01,9.7e-05,2]
[402717652,1768832868605,-176.17981849,9.7e-05,2]
[402717653,1768832870996,-187.66332928,9.7e-05,2]
[402717654,1768832874138,-444.16987739,9.7e-05,2]
[402717655,1768832877764,-5964.60107293,9.7e-05,2]
[402717656,1768832877857,-10000.01,9.7e-05,2]
[402717657,1768832877991,-10000.01,9.7e-05,2]
[402717658,1768832878108,-10000.01,9.7e-05,2]
[402717659,1768832878236,-10000.01,9.7e-05,2]
[402717660,1768832878557,-10000.01,9.7e-05,2]
[402717661,1768832879035,-964.18357232,9.7e-05,2]
[402717662,1768832880081,-10000.01,9.7e-05,2]
[402717663,1768832880258,-5000.0,9.603e-05,2]
[402717664,1768832880297,-0.01,9.7e-05,2]
[402717665,1768832880388,-10000.01,9.7e-05,2]
[402717666,1768832880534,-10000.01,9.7e-05,2]
[402717667,1768832880653,-384.11,9.7e-05,2]
[402717668,1768832882115,-173.51716562,9.7e-05,2]
[402717670,1768832885392,-248.57189653,9.699e-05,2]
[402717672,1768832887443,-51.42810347,9.699e-05,2]
[402717673,1768832887470,-280.87189653,9.7e-05,2]
[402717674,1768832888987,-152.11951346,9.602e-05,2]
[402717675,1768832892230,-260.57937042,9.602e-05,2]
[402717676,1768832893579,-9.39017827,9.602e-05,2]
[402717677,1768832893603,-175.55982173,9.7e-05,2]
[402717678,1768832895089,-201.33372456,9.7e-05,2]
[402717680,1768832897162,-343.38326697,9.603e-05,2]
[402717681,1768832900659,192.05,7.007e-05,2]
[402717682,1768832901522,-256.06,7.312e-05,2]
[402717683,1768832901547,-185.22872917,7.616e-05,2]
[402717684,1768832904150,-134.85127083,7.616e-05,2]
[402717685,1768832904177,-209.81500461,7.921e-05,2]
[402717686,1768832910185,-234.02452764,7.54e-05,2]
[402717687,1768832913455,-5000.0,7.465e-05,2]
[402717688,1768832913493,-0.01,7.54e-05,2]
[402717689,1768832913546,-245.85,7.54e-05,2]
[402717690,1768832913692,-4520.11547236,7.54e-05,2]
[402717691,1768832913742,-174.27499539,7.921e-05,2]
[402717692,1768832913818,-163.1190645,8.226e-05,2]
[402717693,1768832913899,-284.9909355,8.226e-05,2]
[402717694,1768832915006,-178.36947992,8.53e-05,2]
[402717695,1768832917462,-200.0,8e-05,7]
[402717696,1768832917487,-11.33977812,8.53e-05,2]
[402717697,1768832918983,-189.84,8.53e-05,2]
[402717699,1768832920477,-132.58074196,8.53e-05,2]
[402717700,1768832920503,-25.39925804,8.835e-05,2]
[402717701,1768832922391,-177.4565356,8.705e-05,2]
[402717702,1768832922425,-550.74074196,8.835e-05,2]
[402717703,1768832922460,-640.16,9.14e-05,2]
[402717704,1768832922489,-2606.67871185,9.603e-05,2]
[402717705,1768832922545,-554.77408138,9.603e-05,2]
[402717706,1768832922583,-1495.1639398,9.603e-05,2]
[402717707,1768832922593,-554.77408138,9.7e-05,2]
[402717708,1768832922623,-10000.01,9.7e-05,2]
[402717709,1768832922709,-10000.01,9.7e-05,2]
[402717710,1768832922855,-10000.01,9.7e-05,2]
[402717711,1768832923136,-10000.01,9.7e-05,2]
[402717713,1768832925453,-10000.01,9.7e-05,2]
[402717719,1768832928713,-5000.0,9.603e-05,2]
[402717720,1768832928750,-0.01,9.7e-05,2]
[402717721,1768832929189,-696.42430548,9.42e-05,2]
[402717722,1768832929227,-8607.16138904,9.7e-05,2]
[402717723,1768832929318,-10000.01,9.7e-05,2]
[402717724,1768832929475,-10000.01,9.7e-05,2]
[402717725,1768832929609,-10000.01,9.7e-05,2]
[402717726,1768832929745,-10000.01,9.7e-05,2]
[402717727,1768832929872,-10000.01,9.7e-05,2]
[402717741,1768832934540,-10000.01,9.7e-05,2]
[402717743,1768832937483,-358.97591862,9.603e-05,2]
[402717744,1768832951990,-208.39988975,9.412e-05,2]
[402717745,1768832955734,-4791.60011025,9.412e-05,2]
[402717746,1768832955770,-416.8097795,9.507e-05,2]
[402717747,1768832957061,-728.18134914,9.507e-05,2]
[402717748,1768832961829,-3855.00887136,9.507e-05,2]
[402717749,1768832961868,-2289.99225728,9.603e-05,2]
[402717750,1768832964959,-2351.0318241,9.603e-05,2]
[402717751,1768832964988,-300.0,9.699e-05,2]
[402717752,1768832965036,-4697.9463518,9.7e-05,2]
[402717754,1768832970946,-5000.0,9.603e-05,2]
[402717755,1768832970984,-0.01,9.7e-05,2]
[402717756,1768832974149,-3336.92643699,9.7e-05,2]
[402717757,1768832974816,3326.15712602,9.603e-05,2]
[402717758,1768832974842,1673.84287398,9.603e-05,2]
[402717759,1768832977708,466.3,6.387e-05,2]
[402717760,1768832978111,932.59,6.691e-05,2]
[402717761,1768832978519,1398.89,6.995e-05,2]
[402717762,1768832978961,1865.19,7.299e-05,2]
[402717763,1768832979379,2331.48,7.603e-05,2]
[402717764,1768832979825,1331.71712602,7.907e-05,2]
[402717765,1768832979855,1466.06287398,7.907e-05,2]
[402717766,1768832980241,3264.08,8.211e-05,2]
[402717767,1768832980670,3730.37,8.515e-05,2]
[402717775,1768832981103,1539.49712602,8.82e-05,2]
[402717776,1768832981126,2657.17287398,8.82e-05,2]
[402717778,1768832981515,4662.97,9.124e-05,2]
[402717783,1768832990699,2039.54101934,9.7e-05,2]
[402717784,1768833007546,-5000.0,9.753e-05,2]
[402717786,1768833007756,-557.0,9.753e-05,2]
[402717787,1768833011514,-231.46878977,9.777e-05,2]
[402717788,1768833021545,5000.0,9.753e-05,2]
[402717796,1768833029010,-31.95310711,9.777e-05,2]
[402717914,1768833038524,-384.11,9.8e-05,2]
[402717916,1768833038535,-1200.0,9.85e-05,2]
[402717918,1768833038544,-300.0,9.851e-05,2]
[402717920,1768833038555,-300.0,9.851e-05,2]
[402717922,1768833038565,-300.0,9.851e-05,2]
[402717924,1768833038575,-300.0,9.851e-05,2]
[402717926,1768833038585,-2665.51274866,9.852e-05,2]
[402717931,1768833038617,-2334.48725134,9.852e-05,2]
[402717933,1768833038627,-250.0,9.951e-05,2]
[402717935,1768833038637,-299.489231,0.00010836,2]
[402718147,1768833040723,-120.510769,0.00010836,2]
[402718150,1768833040733,-2105.43005958,0.00010841,2]
[402718175,1768833041248,-3e-08,0.00010841,2]
[402718291,1768833045387,-5000.0,0.00010732,2]
[402718292,1768833045398,-46895.37519878,0.00010841,2]
[402718293,1768833045408,-215.15266306,0.00010841,2]
[402718294,1768833045418,-231.01613437,0.00010841,2]
[402718295,1768833045427,-500.0,0.00010841,2]
[402718296,1768833045437,-5703.60986948,0.00010843,2]
[402718297,1768833045450,-8522.75858177,0.00010843,2]
[402718298,1768833045463,-2400.71478538,0.00010843,2]
[402718299,1768833045474,-16271.96194694,0.00010843,2]
[402718304,1768833046486,-15367.63341968,0.00010843,2]
[402718305,1768833046498,-1069.2359428,0.00010843,2]
[402718306,1768833046551,-12031.16937591,0.00010843,2]
[402718307,1768833046564,-2379.51259162,0.00010843,2]
[402718308,1768833052136,593.17977236,9.252e-05,2]
[402718310,1768833053793,215.05,6.513e-05,2]
[402718311,1768833054196,430.09,6.823e-05,2]
[402718312,1768833054585,645.14,7.133e-05,2]
[402718313,1768833054998,860.18,7.444e-05,2]
[402718314,1768833055400,1075.23,7.754e-05,2]
[402718315,1768833055838,1290.27,8.064e-05,2]
[402718316,1768833056231,1505.32,8.374e-05,2]
[402718317,1768833056657,1720.36,8.684e-05,2]
[402718318,1768833057047,1935.41,8.994e-05,2]
[402718319,1768833057461,2150.45,9.304e-05,2]
[402718330,1768833093838,571.33505661,0.00027,120]
[402718331,1768833135494,7832.02364026,0.00027,120]
[402718332,1768833135534,285.98,6.614e-05,2]
[402718333,1768833135938,428.97,6.914e-05,2]
[402718334,1768833136350,571.96,7.215e-05,2]
[402718335,1768833136742,714.95,7.516e-05,2]
[402718336,1768833137186,857.94,7.816e-05,2]
[402718337,1768833137580,1000.93,8.117e-05,2]
[402718338,1768833138089,1143.92,8.417e-05,2]
[402718339,1768833138507,1286.91,8.718e-05,2]
[402718340,1768833138904,1429.9,9.019e-05,2]
[402718343,1768833216233,191.1,6.75e-05,2]
[402718344,1768833216618,286.65,7.057e-05,2]
[402718345,1768833217022,382.2,7.364e-05,2]
[402718346,1768833217462,477.75,7.671e-05,2]
[402718347,1768833218194,573.3,7.978e-05,2]
[402718348,1768833218258,367.55,8.285e-05,2]
[402718349,1768833218281,301.3,8.285e-05,2]
[402718350,1768833218656,764.4,8.591e-05,2]
[402718351,1768833219097,859.95,8.898e-05,2]
[402718352,1768833219530,955.5,9.205e-05,2]
[402718353,1768833244739,-676.93411333,9.629e-05,2]
[402718354,1768833244957,5000.0,9.591e-05,2]
[402718355,1768833292142,179.28,7.785e-05,2]
[402718356,1768833292557,209.16,8.085e-05,2]
[402718357,1768833293468,239.04,8.384e-05,2]
[402718358,1768833293900,268.93,8.683e-05,2]
[402718359,1768833294298,298.81,8.983e-05,2]
[402718361,1768833378647,1000.0,0.00027397,120]
[402718362,1768833398929,449.04930652,9.629e-05,2]
[402718364,1768833480437,190.91,2.997e-05,2]